[Event "WR Chess Masters 2023"]
[Site "Duesseldorf"]
[Date "2023.02.18"]
[Round "4.1"]
[White "Duda, Jan-Krzysztof"]
[Black "Aronian, Levon"]
[Result "1/2-1/2"]
[ECO "D39"]
[WhiteElo "2729"]
[BlackElo "2736"]
[Annotator "TA"]
[PlyCount "61"]
[EventDate "2023.02.16"]
[EventCountry "GER"]
[SourceTitle "playchess.com"]
[Source "ChessBase"]
[SourceQuality "1"]
[TimeControl "40/7200:20/3600:900+30"]

{[%evp 21,61,10,15,22,0,0,0,0,0,0,0,0,0,0,16,0,14,0,0,0,0,0,0,0,0,0,0,0,0,0,0,0,0,0,0,0,0,0,0,0,0,0]} 1. d4 {[%emt 0:00:03]} Nf6 {[%emt 0:00:06]} 2. c4 {[%emt 0:00:06]} e6 {[%emt 0:00:05]} 3. Nf3 {[%emt 0:00:08]} d5 {[%emt 0:00:05]} 4. Nc3 {[%emt 0:00:06]} Bb4 {[%emt 0:00:06]} 5. Bg5 {[%emt 0:00:29]} dxc4 {[%emt 0:00:09]} 6. e4 {[%emt 0:00:07][%cal Be2e4,Be4e5][%mdl 32]} c5 {[%emt 0:00:06]} 7. e5 {[%emt 0:00:45]} cxd4 {[%emt 0:00:24]} 8. Nxd4 {[%emt 0:00:15]} Bxc3+ {[%emt 0:01:26]} 9. bxc3 {[%emt 0:00:07]} Qa5 {[%emt 0:00:07]} 10. exf6 {[%emt 0:00:20]} Qxg5 {[%emt 0:00:07]} 11. fxg7 {[%emt 0:00:06]} Qxg7 {[%emt 0:00:17] The position is equal.} 12. Qd2 {[%emt 0:00:09] D39: Queen's Gambit Declined: Ragozin Defence with 5 Bg5 dxc4.} O-O {[%emt 0:02:13]} 13. Bxc4 {[%emt 0:01:05]} Rd8 {[%emt 0:02:15]} (13... Qxg2 $2 14. O-O-O Qg6 15. Rhg1 $18) 14. Qe3 {[%emt 0:00:11]} Bd7 {[%emt 0:00:26]} (14... Qxg2 $2 15. O-O-O Rxd4 16. Qxd4 Qg5+ 17. Kb2 $18) (14... e5 15. Nf3 $14) 15. O-O-O {[%emt 0:01:03]} Nc6 {[%emt 0:03:33]} 16. Bb3 {[%emt 0:00:15] [#]} Rac8 $146 {[%emt 0:07:51]} (16... Qxg2 $2 17. Rhg1 $18) ({Predecessor:} 16... Be8 17. Nxc6 Bxc6 18. h4 Qf6 19. Rh3 b5 20. Rg3+ Kh8 21. Rg4 a5 22. Rf4 Qg7 23. Rxd8+ Rxd8 {½-½ Carlsen,M (2875)-Aronian,L (2752) Croatia GCT Zagreb 2019 (9)}) 17. Kb2 {[%emt 0:01:14]} a5 {[%emt 0:14:31][%cal Ba7a5,Ba5a4][%mdl 32]} (17... Qxg2 $2 18. Rhg1 $18) 18. h4 {[%emt 0:06:06] Black must now prevent Rh3.} Kh8 {[%emt 0:00:48]} (18... Qxg2 $2 19. Rhg1 $18) (18... Nxd4 19. Rxd4 e5 20. Rd5 $14) 19. h5 {[%emt 0:03:28]} Qe5 {[%emt 0:09:04]} 20. Qf3 {[%emt 0:09:36]} Nxd4 {[%emt 0:01:02]} 21. cxd4 {[%emt 0:08:25]} Qg5 {[%emt 0:00:20]} 22. Qxf7 {[%emt 0:01:47]} a4 {[%emt 0:03:34]} 23. Bxe6 {[%emt 0:01:09]} Bxe6 {[%emt 0:08:07]} 24. Qxe6 {[%emt 0:00:56] [#] Strongly threatening Qe5+.} Re8 {[%emt 0:00:04]} (24... Qxg2 $2 25. Qe5+ Qg7 26. h6 Qxe5 27. dxe5 $18) 25. Qd6 {[%emt 0:02:44]} Re2+ {[%emt 0:00:50]} (25... Qxg2 26. Qf6+ Qg7 27. Qxg7+ Kxg7 28. d5 $16) 26. Ka1 {[%emt 0:01:02]} Rcc2 {[%emt 0:00:56]} (26... Qb5 $2 27. Rd2 (27. Rb1 Qc4 $11) (27. Qf6+ Kg8 $11) 27... Rxd2 28. Qf6+ Kg8 29. Qe6+ Kf8 30. Qh6+ (30. Qxc8+ Qe8 $18) 30... Ke8 31. Qxd2 $18) 27. Qf8+ {[%emt 0:00:53]} Qg8 {[%emt 0:00:04]} 28. Qf6+ {[%emt 0:00:05]} Qg7 {[%emt 0:00:03]} 29. Qd8+ {[%emt 0:00:05]} Qg8 {[%emt 0:00:04]} 30. Qf6+ {[%emt 0:00:04]} Qg7 {[%emt 0:00:04]} 31. Qd8+ {[%emt 0:00:04] A balanced but interesting game.   Weighted Error Value: White=0.02 (flawless) /Black=0.02 (flawless)} 1/2-1/2

[Event "WR Chess Masters 2023"]
[Site "Duesseldorf"]
[Date "2023.02.18"]
[Round "4.2"]
[White "So, Wesley"]
[Black "Nepomniachtchi, Ian"]
[Result "1/2-1/2"]
[ECO "E08"]
[WhiteElo "2766"]
[BlackElo "2793"]
[Annotator "TA"]
[PlyCount "83"]
[EventDate "2023.02.16"]
[EventCountry "GER"]
[SourceTitle "playchess.com"]
[Source "ChessBase"]
[SourceQuality "1"]
[TimeControl "40/7200:20/3600:900+30"]

{[%evp 18,83,12,0,19,18,22,27,28,11,12,32,23,20,32,21,21,20,18,22,18,20,29,11,37,0,0,0,41,0,50,69,57,64,62,57,59,59,102,64,64,64,64,64,72,72,72,72,72,72,72,72,72,72,72,72,86,86,86,72,86,86,93,0,93,72,80,0]} 1. d4 {[%emt 0:00:00]} Nf6 {[%emt 0:00:26]} 2. c4 {[%emt 0:00:07]} e6 {[%emt 0:00:04]} 3. Nf3 {[%emt 0:05:13]} d5 {[%emt 0:00:14]} 4. g3 {[%emt 0:00:03]} Bb4+ {[%emt 0:00:05]} 5. Bd2 {[%emt 0:00:34]} Be7 {[%emt 0:00:06]} 6. Bg2 {[%emt 0:01:25]} O-O {[%emt 0:00:14]} 7. O-O {[%emt 0:00:06]} c6 {[%emt 0:00:05]} 8. Qc2 {[%emt 0:05:29]} Nbd7 {[%emt 0:00:16]} 9. Bf4 {[%emt 0:00:05]} b6 {[%emt 0:00:40]} 10. Rd1 {[%emt 0:02:11] 10.Nbd2 is more fashionable.} Ba6 {[%emt 0:01:34] E08: Closed Catalan: Main Line: 7 Qc2.} 11. Ne5 {[%emt 0:00:24]} Nxe5 {[%emt 0:00:29]} 12. dxe5 {[%emt 0:00:07]} Nd7 {[%emt 0:00:58] White has an edge.} 13. cxd5 {[%emt 0:05:19]} cxd5 {[%emt 0:00:33]} 14. e4 {[%emt 0:00:04]} Rc8 {[%emt 0:00:06]} 15. Nc3 {[%emt 0:00:36]} d4 {[%emt 0:00:10]} 16. Rxd4 {[%emt 0:00:17] [#] Threatens to win with Qa4.} Qc7 {[%emt 0:00:06]} 17. Rad1 {[%emt 0:21:47]} Rfd8 {[%emt 0:01:47]} (17... Nxe5 $2 18. Qa4 Bb7 19. Rd7 Qxd7 20. Rxd7 $18) 18. h4 {[%emt 0:11:12]} h6 {[%emt 0:00:09]} 19. h5 {[%emt 0:00:52]} Bc5 {[%emt 0:00:18]} 20. R4d2 {[%emt 0:00:20]} Bf8 {[%emt 0:00:08] [#]} 21. Rd4 $146 {[%emt 0:06:42] [#] Strongly threatening Qd2.} ({Predecessor:} 21. Qb1 Nc5 22. Rxd8 Rxd8 23. Rxd8 Qxd8 24. Be3 Qc7 25. f4 Qc6 26. Qd1 Nd3 27. Qd2 Bb4 28. a3 Bxc3 29. Qxc3 Qxc3 30. bxc3 {½-½ Pham,C (2352)-Tran,M (2342) Hanoi op 2022 (6)}) 21... Bc5 {[%emt 0:00:32]} 22. R4d2 {[%emt 0:00:05]} Bf8 {[%emt 0:00:04]} 23. a4 {[%emt 0:01:06]} Nb8 {[%emt 0:17:06]} (23... Be7 $11) 24. Rxd8 $14 {[%emt 0:10:08]} Rxd8 {[%emt 0:01:58]} 25. Rxd8 {[%emt 0:03:36]} Qxd8 {[%emt 0:00:08]} 26. Nb5 {[%emt 0:06:17] Against Qc7} Bxb5 {[%emt 0:00:16]} 27. axb5 {[%emt 0:00:04]} Bc5 {[%emt 0:00:08]} 28. Qd2 {[%emt 0:10:07]} Qxd2 {[%emt 0:01:06]} 29. Bxd2 {[%emt 0:01:29][%mdl 4096] Endgame KBB-KBN} Bd4 $1 {[%emt 0:00:03][%csl LRb2,LRe5]} 30. Bc3 {[%emt 0:04:15]} Bxc3 {[%emt 0:00:05]} 31. bxc3 {[%emt 0:00:02] KB-KN} Nd7 {[%emt 0:00:07]} 32. f4 {[%emt 0:00:20]} Nc5 {[%emt 0:00:18]} 33. Kf2 {[%emt 0:00:10]} Na4 {[%emt 0:00:12]} 34. c4 {[%emt 0:00:04]} Nc5 {[%emt 0:00:05]} 35. Ke3 {[%emt 0:00:03]} Nd7 {[%emt 0:00:11]} 36. Bf1 {[%emt 0:00:35]} Kf8 {[%emt 0:00:12]} 37. Bd3 {[%emt 0:00:04]} Ke7 {[%emt 0:00:22]} 38. Bc2 {[%emt 0:00:04]} Kf8 {[%emt 0:00:45]} 39. Kd4 {[%emt 0:00:30]} Ke7 {[%emt 0:00:51]} 40. Ke3 {[%emt 0:00:00]} Kf8 $1 {[%emt 0:00:00]} 41. Kf3 {[%emt 0:00:07]} Ke7 {[%emt 0:00:18]} 42. Ke3 {[%emt 0:00:07] Weighted Error Value: White=0.09 (flawless) /Black=0.04 (flawless)} (42. Kg4 $16) 1/2-1/2

[Event "WR Chess Masters 2023"]
[Site "Duesseldorf"]
[Date "2023.02.18"]
[Round "4.3"]
[White "Gukesh D"]
[Black "Keymer, Vincent"]
[Result "1/2-1/2"]
[ECO "B90"]
[WhiteElo "2718"]
[BlackElo "2690"]
[Annotator "TA"]
[PlyCount "79"]
[EventDate "2023.02.16"]
[EventCountry "GER"]
[SourceTitle "playchess.com"]
[Source "ChessBase"]
[SourceQuality "1"]
[TimeControl "40/7200:20/3600:900+30"]

{[%evp 12,79,37,0,33,12,12,4,7,4,32,36,29,6,28,32,35,6,7,12,3,16,11,8,50,58,45,20,27,17,33,20,21,19,20,18,14,22,14,8,2,0,0,0,14,14,8,8,8,0,32,32,32,32,32,32,32,32,51,51,51,51,51,51,51,51,51,51,51,51]} 1. e4 {[%emt 0:00:11]} c5 {[%emt 0:00:05]} 2. Nf3 {[%emt 0:00:07][%cal Bg1f3,Bf3d4,Bd4b3][%mdl 32]} d6 {[%emt 0:00:03]} 3. d4 {[%emt 0:00:09]} cxd4 {[%emt 0:00:05]} 4. Nxd4 {[%emt 0:00:04]} Nf6 {[%emt 0:00:04]} 5. Nc3 {[%emt 0:00:05]} a6 {[%emt 0:00:04]} 6. h3 {[%emt 0:00:33]} e5 $1 {[%emt 0:00:10] The main line 6...e5 scores better than 6...e6.} 7. Nb3 {[%emt 0:00:08]} Be6 {[%emt 0:00:57] B90: Sicilian Najdorf: Unusual White 6th moves, 6 Be3 Ng4 and 6 Be3 e5.} 8. Be3 {[%emt 0:03:17]} Nbd7 {[%emt 0:00:29]} 9. g4 {[%emt 0:02:07]} h6 {[%emt 0:04:50] The position is equal.} 10. Qd3 {[%emt 0:12:58] [#]} Nc5 $146 {[%emt 0:09:44]} ({Predecessor:} 10... Rc8 11. O-O-O Be7 12. Kb1 b5 13. f4 exf4 14. Bxf4 Ne5 15. Qg3 Qc7 16. Qg2 O-O {½-½ Panitevsky,I (2507)-Firnhaber,I (2469) FRA MT-Muneret email 2018}) 11. Nxc5 {[%emt 0:05:59]} dxc5 {[%emt 0:00:05]} 12. Qe2 {[%emt 0:04:07]} Be7 {[%emt 0:12:55]} 13. Bg2 {[%emt 0:08:32]} O-O {[%emt 0:13:51]} 14. O-O {[%emt 0:00:50]} Qb6 {[%emt 0:06:20]} 15. Nd5 {[%emt 0:06:40]} Nxd5 {[%emt 0:04:49]} (15... Qxb2 $2 16. Rfb1 Qa3 17. Nxe7+ $18) 16. exd5 {[%emt 0:00:07]} Bd7 {[%emt 0:00:06] [#]} 17. b4 $1 {[%emt 0:04:15] Strongly threatening Rab1.} Qxb4 {[%emt 0:11:48] [#]} (17... Qc7 $5 {[%cal Rc5b4]}) 18. d6 $1 {[%emt 0:23:03]} Bg5 {[%emt 0:23:40]} (18... Bxd6 19. Qd1 $16) 19. Bxg5 {[%emt 0:03:53]} Bb5 {[%emt 0:00:45]} 20. c3 {[%emt 0:14:32]} Qa4 {[%emt 0:07:11] [#]} (20... hxg5 $2 21. cxb4 Bxe2 22. Rfe1 $18) 21. Qxe5 {[%emt 0:01:17]} Bxf1 {[%emt 0:00:05]} 22. Bxh6 {[%emt 0:00:10]} gxh6 {[%emt 0:00:45][%cal Bg7h6,Bh6h5,Bh5g4][%mdl 32]} 23. Rxf1 {[%emt 0:00:20]} Rae8 {[%emt 0:04:04][%cal Ba8e8,Be8e6,Be6g6][%mdl 32]} 24. Qxc5 {[%emt 0:01:36] Threatens to win with c4.} Re6 $1 {[%emt 0:00:29]} 25. Bd5 {[%emt 0:07:36]} Rg6 {[%emt 0:00:59]} 26. Rb1 {[%emt 0:07:26] And now c4 would win.} h5 {[%emt 0:05:32]} 27. d7 {[%emt 0:02:04][%mdl 64] Deflection} (27. Bxb7 hxg4 28. Qf5 (28. h4 $2 g3 $19) 28... gxh3+ 29. Kh1 Qa3 $17) 27... Qxd7 {[%emt 0:00:31]} 28. Be4 $1 {[%emt 0:01:13]} (28. Bxb7 $2 {loses.} Rb8 29. Qxh5 Rxb7 30. Rxb7 Qxb7 $19) (28. Rxb7 Qf5 29. f3 Qf4 $17) 28... hxg4 {[%emt 0:01:26]} 29. Bxg6 {[%emt 0:00:19]} (29. Bxb7 $2 {too greedy.} Rb8 30. Qd4 gxh3+ 31. Kh1 Rxb7 $19) 29... fxg6 $11 {[%emt 0:00:01][%mdl 4096] Endgame KQR-KQR} 30. Qc4+ {[%emt 0:00:08]} Qf7 {[%emt 0:01:20]} 31. Qxf7+ {[%emt 0:00:04] White is slightly better.} ({Of course not} 31. Qxg4 Qxf2+ 32. Kh1 Qf3+ 33. Qxf3 Rxf3 $11) 31... Rxf7 {[%emt 0:00:03]} 32. hxg4 $14 {[%emt 0:00:02] KR-KR} b5 {[%emt 0:00:10]} 33. Kg2 {[%emt 0:00:33]} Rc7 {[%emt 0:00:42]} 34. Rd1 {[%emt 0:00:19]} Rxc3 {[%emt 0:00:58]} 35. Rd6 {[%emt 0:00:04][%csl LRa6,LRg6]} Kf7 {[%emt 0:00:12]} 36. Rxa6 {[%emt 0:00:04]} b4 {[%emt 0:00:04]} 37. g5 {[%emt 0:00:56]} b3 {[%emt 0:00:10]} 38. axb3 {[%emt 0:00:04]} Rxb3 {[%emt 0:00:03]} 39. Rf6+ {[%emt 0:00:18]} Kg7 {[%emt 0:00:03]} 40. f3 {[%emt 0:00:00] An interesting game.   Weighted Error Value: White=0.05 (flawless) /Black=0.07 (flawless)} 1/2-1/2

[Event "WR Chess Masters 2023"]
[Site "Duesseldorf"]
[Date "2023.02.18"]
[Round "4.4"]
[White "Abdusattorov, Nodirbek"]
[Black "Praggnanandhaa R"]
[Result "1/2-1/2"]
[ECO "B22"]
[WhiteElo "2734"]
[BlackElo "2690"]
[Annotator "TA"]
[PlyCount "116"]
[EventDate "2023.02.16"]
[EventCountry "GER"]
[SourceTitle "playchess.com"]
[Source "ChessBase"]
[SourceQuality "1"]
[TimeControl "40/7200:20/3600:900+30"]

{[%evp 23,116,0,0,0,0,0,0,0,0,0,0,0,15,3,6,10,12,14,8,0,13,9,13,17,12,17,6,14,14,16,11,0,25,22,26,12,12,12,13,14,7,10,10,14,12,8,13,1,14,0,0,0,0,0,0,0,0,0,0,0,0,0,0,0,0,0,0,0,0,0,0,0,0,0,0,0,0,0,0,0,0,0,0,0,0,0,0,0,0,0,0,0,0,0,0]} 1. e4 {[%emt 0:00:26]} c5 {[%emt 0:00:40]} 2. Nf3 {[%emt 0:00:09]} Nc6 {[%emt 0:00:04]} 3. c3 {[%emt 0:01:52]} d5 {[%emt 0:00:25]} 4. exd5 {[%emt 0:00:00]} Qxd5 {[%emt 0:00:04]} 5. d4 {[%emt 0:00:19]} Nf6 {[%emt 0:00:07]} 6. Be2 {[%emt 0:01:03]} e6 {[%emt 0:01:12]} 7. O-O {[%emt 0:01:18]} cxd4 {[%emt 0:00:53]} 8. cxd4 {[%emt 0:00:47]} Be7 {[%emt 0:00:06]} 9. Nc3 {[%emt 0:00:27]} Qd6 {[%emt 0:00:17]} 10. Nb5 {[%emt 0:00:25]} Qd8 {[%emt 0:00:16]} 11. Bf4 {[%emt 0:00:08]} Nd5 {[%emt 0:00:18]} 12. Bg3 {[%emt 0:00:14]} O-O $1 {[%emt 0:00:09][%mdl 4] is more profitable than 12...a6 at the moment.} 13. Rc1 {[%emt 0:01:25] B22: Sicilian: 2 c3.} Bd7 {[%emt 0:03:52]} 14. Nd6 {[%emt 0:11:08]} Bxd6 {[%emt 0:04:03]} 15. Bxd6 {[%emt 0:00:07]} Nce7 {[%emt 0:01:38][%cal Bc6e7,Be7g6,Bg6f4][%mdl 32] [#]} 16. Ba3 $146 {[%emt 0:06:19]} ({Predecessor:} 16. Qd2 a6 17. Ba3 Bb5 18. Bxb5 axb5 19. Ne5 Ra4 20. Qd1 Qe8 21. Bc5 b6 22. Bxe7 Qxe7 {½-½ Kosteniuk,A (2504)-Krush,I (2422) Saint Louis Cairns Cup (Women) 2nd 2020 (1)}) 16... Re8 {[%emt 0:23:39]} 17. Ne5 {[%emt 0:05:05]} Ng6 {[%emt 0:02:52]} (17... f6 {simplifies} 18. Nxd7 Qxd7 19. Bxe7 Qxe7 20. Re1 Rac8) 18. Qd2 {[%emt 0:07:55]} Ngf4 {[%emt 0:12:58][%cal Od8g5] [#] ...Qg5! would be deadly. A dynamic duo of knights.} 19. Bf3 {[%emt 0:02:52]} Bb5 {[%emt 0:00:17]} 20. Rfd1 {[%emt 0:03:40]} Qf6 {[%emt 0:03:50]} 21. Bd6 {[%emt 0:11:26]} Rad8 {[%emt 0:11:45]} 22. Ng4 {[%emt 0:00:07]} Qf5 {[%emt 0:04:09]} 23. Bxf4 {[%emt 0:01:55]} Qxf4 {[%emt 0:03:03]} 24. Ne3 {[%emt 0:12:28]} Bc6 {[%emt 0:03:50]} 25. Nxd5 {[%emt 0:01:03]} Qxd2 {[%emt 0:00:27]} 26. Rxd2 {[%emt 0:00:04] [#] Threatens to win with Nc3.} Bxd5 {[%emt 0:04:31]} 27. Rc7 {[%emt 0:00:20]} Kf8 {[%emt 0:01:46]} 28. Bxd5 {[%emt 0:00:55]} exd5 $11 {[%emt 0:00:10][%cal Re8e1][%mdl 4096] Endgame KRR-KRR} 29. g4 {[%emt 0:00:41]} (29. Rxb7 $2 Re1#) 29... Re7 {[%emt 0:00:34] The position is equal.} 30. Rdc2 {[%emt 0:00:07]} Ke8 {[%emt 0:01:42]} 31. Kg2 {[%emt 0:00:48]} Rxc7 {[%emt 0:03:25]} 32. Rxc7 {[%emt 0:00:07] KR-KR} Rd7 {[%emt 0:00:02]} 33. Rc8+ {[%emt 0:02:55]} Rd8 {[%emt 0:00:59]} 34. Rc3 {[%emt 0:00:19]} Rd6 {[%emt 0:05:26]} 35. h4 {[%emt 0:00:11]} Kd7 {[%emt 0:06:35]} 36. Ra3 {[%emt 0:06:05]} Rb6 {[%emt 0:01:13]} 37. Rxa7 {[%emt 0:00:07]} Rxb2 {[%emt 0:00:05]} 38. Kf3 {[%emt 0:00:17]} Ke6 {[%emt 0:01:15]} 39. Ra8 {[%emt 0:02:12]} h6 {[%emt 0:03:21]} 40. Ke3 {[%emt 0:00:00]} Rc2 {[%emt 0:00:00]} 41. Re8+ {[%emt 0:19:07]} Kd6 {[%emt 0:11:41]} 42. h5 {[%emt 0:06:22]} Rc3+ {[%emt 0:16:26]} ({Don't play} 42... Rxa2 43. Rg8 $11) 43. Kf4 {[%emt 0:01:42]} Rd3 {[%emt 0:01:22]} 44. Rg8 {[%emt 0:00:20]} Rxd4+ {[%emt 0:01:12]} 45. Kf5 {[%emt 0:04:35]} Rd2 {[%emt 0:00:42][%cal Rd2f2]} 46. f4 {[%emt 0:00:11]} d4 {[%emt 0:05:13]} 47. Rxg7 {[%emt 0:01:11]} Ke7 {[%emt 0:02:05][%cal Od2e2] Strongly threatening ...Re2!} ({Don't take} 47... Rxa2 48. Rxf7 b5 49. Rf6+ Kc7 50. Ke4 $16 (50. Rxh6 d3 $11)) 48. Ke4 {[%emt 0:03:25]} Rxa2 {[%emt 0:01:48]} 49. Rg8 {[%emt 0:00:19]} Rd2 {[%emt 0:04:42]} 50. Rb8 {[%emt 0:03:58]} Kf6 {[%emt 0:01:29]} 51. Rxb7 {[%emt 0:00:09]} Re2+ {[%emt 0:00:21]} 52. Kxd4 {[%emt 0:00:16]} Rg2 {[%emt 0:00:04]} 53. Rb6+ {[%emt 0:00:24]} Kg7 {[%emt 0:00:05]} 54. g5 {[%emt 0:00:09]} hxg5 {[%emt 0:00:04]} 55. h6+ {[%emt 0:00:03]} Kh7 {[%emt 0:00:04]} 56. fxg5 {[%emt 0:00:24]} Rxg5 {[%emt 0:00:04]} 57. Rf6 {[%emt 0:00:05]} Rg6 {[%emt 0:00:06]} 58. Rxf7+ {[%emt 0:00:04]} Kxh6 {[%emt 0:00:03] An even fight not without its subleties.   Weighted Error Value: White=0.02 (flawless) /Black=0.02 (flawless)} 1/2-1/2

[Event "WR Chess Masters 2023"]
[Site "Duesseldorf"]
[Date "2023.02.18"]
[Round "4.5"]
[White "Giri, Anish"]
[Black "Esipenko, Andrey"]
[Result "1/2-1/2"]
[ECO "D00"]
[WhiteElo "2780"]
[BlackElo "2675"]
[Annotator "TA"]
[PlyCount "65"]
[EventDate "2023.02.16"]
[EventCountry "GER"]
[SourceTitle "playchess.com"]
[Source "ChessBase"]
[SourceQuality "1"]
[TimeControl "40/7200:20/3600:900+30"]

{[%evp 9,65,12,2,-8,21,17,24,9,20,16,15,15,45,35,41,41,56,35,78,75,77,48,47,45,43,58,77,23,41,62,45,102,72,-3,-5,-2,-3,-6,-10,-8,-4,-3,0,-2,0,-4,-4,-6,0,-11,0,0,0,0,0,0,0,0]} 1. d4 {[%emt 0:00:02]} Nf6 {[%emt 0:00:10]} 2. Bf4 {[%emt 0:00:06]} d5 {[%emt 0:01:13]} 3. e3 {[%emt 0:00:05]} c5 {[%emt 0:00:29]} 4. dxc5 {[%emt 0:01:00]} e6 {[%emt 0:05:08]} 5. b4 {[%emt 0:00:24]} a5 {[%emt 0:16:47]} 6. c3 {[%emt 0:00:25] D00: 1 d4 d5: Unusual lines.} ({Reject} 6. Bb5+ Bd7 7. Bxd7+ Qxd7 8. bxa5 Bxc5 $15) 6... Nc6 {[%emt 0:14:54]} 7. Bb5 {[%emt 0:01:34]} Bd7 {[%emt 0:02:41]} 8. Qb3 $1 {[%emt 0:00:19] White has an edge.} Nh5 {[%emt 0:03:47]} (8... Ne4 {seems wilder.} 9. f3 e5 10. fxe4 exf4 11. Ne2 Qh4+) 9. Ne2 {[%emt 0:00:30]} Nxf4 {[%emt 0:01:35]} 10. Nxf4 {[%emt 0:00:10]} g6 {[%emt 0:08:31]} 11. a4 {[%emt 0:02:06]} Bg7 {[%emt 0:03:06]} 12. Ra2 {[%emt 0:00:18]} O-O {[%emt 0:03:14]} 13. O-O {[%emt 0:00:49] [#]} Ne5 $146 {[%emt 0:09:53]} ({Predecessor:} 13... Qc7 14. Rd1 Rfc8 15. Na3 b6 16. Nd3 bxc5 17. Nxc5 Be8 18. Rc2 Qb6 19. Nd3 Rab8 {1-0 Moroni,L (2499)-Mesaros,F (2416) Wch U18 Montevideo 2017 (6)}) 14. Bxd7 {[%emt 0:06:57]} Qxd7 {[%emt 0:00:16]} 15. Rd1 {[%emt 0:00:17]} Qc6 {[%emt 0:04:36]} 16. Nd3 {[%emt 0:13:30]} Nxd3 {[%emt 0:04:00]} 17. Rxd3 {[%emt 0:00:07]} Rfc8 {[%emt 0:00:09][%cal Bf8c8,Bc8c1,Bc1c3][%mdl 32]} 18. Nd2 {[%emt 0:04:29]} (18. g3 $16) 18... axb4 {[%emt 0:06:07]} 19. cxb4 {[%emt 0:00:50]} b6 {[%emt 0:00:05]} 20. cxb6 {[%emt 0:02:43]} Qxb6 {[%emt 0:00:12]} 21. b5 {[%emt 0:09:02]} ({Better is} 21. Qa3 $16) 21... Rc1+ $11 {[%emt 0:00:44] The position is equal.} 22. Nf1 {[%emt 0:00:03][%cal Oe3e4] White is weak on the dark squares} Qa5 {[%emt 0:01:51] [#] And now ...Qe1 would win.} 23. Rd1 $132 {[%emt 0:09:11][%mdl 2048] Against Qe1. White is fighting back} Rc3 {[%emt 0:02:35]} 24. Qb1 {[%emt 0:00:12]} Rc4 {[%emt 0:01:49]} 25. Rd3 {[%emt 0:03:29]} Rb8 {[%emt 0:09:29]} 26. Rb3 {[%emt 0:06:19]} Rxa4 {[%emt 0:00:18]} 27. Rxa4 {[%emt 0:00:07]} Qxa4 {[%emt 0:00:03]} 28. g3 {[%emt 0:02:48]} Rb6 {[%emt 0:00:31]} 29. h4 {[%emt 0:01:15]} h5 {[%emt 0:01:27]} 30. Kg2 {[%emt 0:00:53]} Bf6 {[%emt 0:00:39]} 31. Nd2 {[%emt 0:00:39]} Kg7 {[%emt 0:00:24]} 32. Qd3 {[%emt 0:02:09]} Bxh4 {[%emt 0:01:34]} 33. gxh4 {[%emt 0:05:49] Weighted Error Value: White=0.10 (very precise) /Black=0.08 (flawless)} 1/2-1/2